[Event "Early-Titled-Tuesday-Blitz-May-28-2024"]
[Site "Chess.com"]
[Date "2024.05.28"]
[Round "11"]
[White "rasmussvane"]
[Black "NiranjanNavalgund"]
[Result "1-0"]
[WhiteElo "2952"]
[BlackElo "2523"]
[TimeControl "180+1"]
[EndTime "10:06:32 PDT"]
[Termination "rasmussvane won by resignation"]

1. Nf3 {[%clk 0:02:59.7]} 1... Nf6 {[%clk 0:03:00]} 2. g3 {[%clk 0:02:58.6]}
2... g6 {[%clk 0:03:00.4]} 3. Bg2 {[%clk 0:02:58.8]} 3... d5 {[%clk 0:03:00.7]}
4. O-O {[%clk 0:02:59]} 4... Bg7 {[%clk 0:02:59.9]} 5. c4 {[%clk 0:02:59]} 5...
c6 {[%clk 0:02:58.8]} 6. Qb3 {[%clk 0:02:54.9]} 6... O-O {[%clk 0:02:58.2]} 7.
d4 {[%clk 0:02:54]} 7... a5 {[%clk 0:02:53.2]} 8. Rd1 {[%clk 0:02:49]} 8... a4
{[%clk 0:02:53.2]} 9. Qb4 {[%clk 0:02:48]} 9... Ne4 {[%clk 0:02:46]} 10. Bf4
{[%clk 0:02:37.2]} 10... b6 {[%clk 0:02:14.6]} 11. Bxb8 {[%clk 0:02:14.5]} 11...
Rxb8 {[%clk 0:02:15.5]} 12. Qxa4 {[%clk 0:02:13.7]} 12... b5 {[%clk 0:02:15.6]}
13. cxb5 {[%clk 0:02:12.3]} 13... cxb5 {[%clk 0:02:16.5]} 14. Qb4 {[%clk
0:02:10.8]} 14... e6 {[%clk 0:02:06.6]} 15. Nc3 {[%clk 0:02:07.5]} 15... Re8
{[%clk 0:02:06]} 16. Ne5 {[%clk 0:01:49.8]} 16... Bf8 {[%clk 0:02:04.8]} 17. Qb3
{[%clk 0:01:48.7]} 17... Bd7 {[%clk 0:02:00.3]} 18. Nxe4 {[%clk 0:01:46.5]}
18... dxe4 {[%clk 0:01:59.8]} 19. Bxe4 {[%clk 0:01:46.8]} 19... b4 {[%clk
0:01:59.6]} 20. Rac1 {[%clk 0:01:44.5]} 20... Rb6 {[%clk 0:01:52.9]} 21. Qf3
{[%clk 0:01:40.3]} 21... f5 {[%clk 0:01:48.9]} 22. Nxd7 {[%clk 0:01:37.4]} 22...
Qxd7 {[%clk 0:01:46.8]} 23. Bc6 {[%clk 0:01:37]} 23... Qe7 {[%clk 0:01:44]} 24.
Bxe8 {[%clk 0:01:34.8]} 24... Qxe8 {[%clk 0:01:44.9]} 25. d5 {[%clk 0:01:29.6]}
25... e5 {[%clk 0:01:44.7]} 26. Rc6 {[%clk 0:01:28.8]} 26... e4 {[%clk
0:01:44.1]} 27. Qb3 {[%clk 0:01:28]} 27... Rb7 {[%clk 0:01:42.7]} 28. d6+ {[%clk
0:01:26.9]} 28... Kh8 {[%clk 0:01:41.9]} 29. Rc7 {[%clk 0:01:24.9]} 29... Rb8
{[%clk 0:01:35.2]} 30. d7 {[%clk 0:01:22.8]} 30... Qd8 {[%clk 0:01:35.5]} 31.
Rdc1 {[%clk 0:01:09.9]} 31... Bd6 {[%clk 0:01:33.3]} 32. Rc8 {[%clk 0:01:09.2]}
1-0

[Event "Early-Titled-Tuesday-Blitz-May-28-2024"]
[Site "Chess.com"]
[Date "2024.05.28"]
[Round "11"]
[White "Boundless_Strike"]
[Black "Al_Shima"]
[Result "1-0"]
[WhiteElo "2614"]
[BlackElo "2479"]
[TimeControl "180+1"]
[EndTime "10:06:46 PDT"]
[Termination "Boundless_Strike won by resignation"]

1. d4 {[%clk 0:03:00.9]} 1... Nf6 {[%clk 0:02:59.9]} 2. Nc3 {[%clk 0:03:01.3]}
2... e6 {[%clk 0:03:00.5]} 3. e4 {[%clk 0:03:00.1]} 3... d5 {[%clk 0:03:00.9]}
4. exd5 {[%clk 0:02:45.2]} 4... exd5 {[%clk 0:03:01.8]} 5. Bg5 {[%clk 0:02:45]}
5... Be7 {[%clk 0:02:58.1]} 6. Qd2 {[%clk 0:02:40.3]} 6... h6 {[%clk 0:02:57.3]}
7. Bf4 {[%clk 0:02:39.6]} 7... Bb4 {[%clk 0:02:49.2]} 8. Bd3 {[%clk 0:02:35.1]}
8... O-O {[%clk 0:02:40.5]} 9. f3 {[%clk 0:02:29.4]} 9... c5 {[%clk 0:02:38.8]}
10. a3 {[%clk 0:02:00.4]} 10... Bxc3 {[%clk 0:02:32.9]} 11. bxc3 {[%clk
0:01:57.5]} 11... c4 {[%clk 0:02:33.2]} 12. Be2 {[%clk 0:01:54.8]} 12... Nc6
{[%clk 0:02:31.5]} 13. g4 {[%clk 0:01:51.3]} 13... Re8 {[%clk 0:02:30.9]} 14.
Kf2 {[%clk 0:01:50.2]} 14... Qe7 {[%clk 0:02:17.1]} 15. h3 {[%clk 0:01:30.2]}
15... Bd7 {[%clk 0:02:14.8]} 16. Kg2 {[%clk 0:01:09.5]} 16... g5 {[%clk
0:02:00.6]} 17. Bg3 {[%clk 0:01:01.8]} 17... Qe3 {[%clk 0:01:59.4]} 18. Qxe3
{[%clk 0:00:58.6]} 18... Rxe3 {[%clk 0:02:00.3]} 19. Be1 {[%clk 0:00:56.1]}
19... Rae8 {[%clk 0:01:54.3]} 20. Kf2 {[%clk 0:00:56]} 20... Ne7 {[%clk
0:01:38.3]} 21. Kxe3 {[%clk 0:00:53.6]} 21... Ng6+ {[%clk 0:01:34.1]} 22. Kf2
{[%clk 0:00:51.3]} 22... Nf4 {[%clk 0:01:35]} 23. Bd2 {[%clk 0:00:49.9]} 23...
Nh7 {[%clk 0:01:33.1]} 24. Bxf4 {[%clk 0:00:47.9]} 24... gxf4 {[%clk 0:01:33.9]}
25. h4 {[%clk 0:00:47.6]} 25... Re3 {[%clk 0:01:34.3]} 26. Bd1 {[%clk
0:00:45.1]} 26... Rxc3 {[%clk 0:01:34.2]} 27. Ne2 {[%clk 0:00:45.5]} 27... Re3
{[%clk 0:01:34.3]} 28. Nxf4 {[%clk 0:00:46.1]} 28... Rc3 {[%clk 0:01:34.2]} 29.
Nxd5 {[%clk 0:00:46.3]} 1-0

[Event "Early-Titled-Tuesday-Blitz-May-28-2024"]
[Site "Chess.com"]
[Date "2024.05.28"]
[Round "11"]
[White "frenchpin"]
[Black "Cheer_Down"]
[Result "1-0"]
[WhiteElo "2400"]
[BlackElo "2443"]
[TimeControl "180+1"]
[EndTime "10:06:50 PDT"]
[Termination "frenchpin won by checkmate"]

1. Nf3 {[%clk 0:02:58.8]} 1... d5 {[%clk 0:02:59.8]} 2. g3 {[%clk 0:02:56.2]}
2... Nf6 {[%clk 0:02:58.9]} 3. Bg2 {[%clk 0:02:55.3]} 3... e6 {[%clk 0:02:56.6]}
4. O-O {[%clk 0:02:54.9]} 4... Be7 {[%clk 0:02:56.9]} 5. c4 {[%clk 0:02:53]}
5... O-O {[%clk 0:02:55.7]} 6. b3 {[%clk 0:02:51.1]} 6... d4 {[%clk 0:02:54.5]}
7. Bb2 {[%clk 0:02:48.6]} 7... c5 {[%clk 0:02:54.7]} 8. b4 {[%clk 0:02:43.8]}
8... a5 {[%clk 0:02:51.6]} 9. b5 {[%clk 0:02:34.7]} 9... Bd6 {[%clk 0:02:46]}
10. d3 {[%clk 0:02:26.3]} 10... e5 {[%clk 0:02:45.4]} 11. Nbd2 {[%clk
0:02:24.2]} 11... h6 {[%clk 0:02:42]} 12. a4 {[%clk 0:02:20.4]} 12... Ra7 {[%clk
0:02:41.4]} 13. Qc2 {[%clk 0:02:01.7]} 13... b6 {[%clk 0:02:39.5]} 14. e3 {[%clk
0:01:56.6]} 14... Re8 {[%clk 0:02:37]} 15. Rfe1 {[%clk 0:01:53]} 15... Rae7
{[%clk 0:02:35.8]} 16. exd4 {[%clk 0:01:47.9]} 16... exd4 {[%clk 0:02:35.6]} 17.
Rxe7 {[%clk 0:01:42.5]} 17... Rxe7 {[%clk 0:02:34.8]} 18. Re1 {[%clk 0:01:42.9]}
18... Bf5 {[%clk 0:02:34.3]} 19. Ne4 {[%clk 0:01:19]} 19... Nxe4 {[%clk
0:02:28.8]} 20. dxe4 {[%clk 0:01:18.6]} 20... Bg4 {[%clk 0:02:24.2]} 21. Bc1
{[%clk 0:01:01.2]} 21... Nd7 {[%clk 0:02:23.7]} 22. h3 {[%clk 0:00:53.8]} 22...
Bh5 {[%clk 0:02:08.2]} 23. Nh4 {[%clk 0:00:52.3]} 23... Ne5 {[%clk 0:01:58.5]}
24. f4 {[%clk 0:00:40.6]} 24... d3 {[%clk 0:01:56.4]} 25. Qc3 {[%clk 0:00:38.1]}
25... Ng6 {[%clk 0:01:51.9]} 26. Nf5 {[%clk 0:00:33.5]} 26... Rd7 {[%clk
0:01:51.5]} 27. Qxg7# {[%clk 0:00:16.7]} 1-0

[Event "Early-Titled-Tuesday-Blitz-May-28-2024"]
[Site "Chess.com"]
[Date "2024.05.28"]
[Round "11"]
[White "MITerryble"]
[Black "jens1102"]
[Result "1-0"]
[WhiteElo "3030"]
[BlackElo "2748"]
[TimeControl "180+1"]
[EndTime "10:06:58 PDT"]
[Termination "MITerryble won by resignation"]

1. d4 {[%clk 0:03:00.9]} 1... Nf6 {[%clk 0:02:59.6]} 2. Bg5 {[%clk 0:03:01]}
2... d5 {[%clk 0:02:59.3]} 3. e3 {[%clk 0:03:01.2]} 3... e6 {[%clk 0:02:59.2]}
4. Nd2 {[%clk 0:03:00.4]} 4... Be7 {[%clk 0:02:59.7]} 5. Ngf3 {[%clk 0:03:00.7]}
5... O-O {[%clk 0:03:00.2]} 6. Bd3 {[%clk 0:03:01]} 6... c5 {[%clk 0:03:00.1]}
7. c3 {[%clk 0:03:01.5]} 7... Nc6 {[%clk 0:02:59.4]} 8. O-O {[%clk 0:03:01.7]}
8... h6 {[%clk 0:02:56.2]} 9. Bh4 {[%clk 0:02:57.4]} 9... a6 {[%clk 0:02:46.6]}
10. Qe2 {[%clk 0:02:56.1]} 10... b5 {[%clk 0:02:44.9]} 11. dxc5 {[%clk
0:02:55.7]} 11... g5 {[%clk 0:02:28.5]} 12. Bg3 {[%clk 0:02:53.5]} 12... Bxc5
{[%clk 0:02:28.8]} 13. e4 {[%clk 0:02:53.5]} 13... Bb7 {[%clk 0:02:16.4]} 14.
Rad1 {[%clk 0:02:52.8]} 14... Qe7 {[%clk 0:02:07.4]} 15. e5 {[%clk 0:02:40.1]}
15... Nd7 {[%clk 0:01:57]} 16. Nb3 {[%clk 0:02:40.2]} 16... Bb6 {[%clk
0:01:55.6]} 17. Nfd4 {[%clk 0:02:38.1]} 17... Nxd4 {[%clk 0:01:54.6]} 18. Nxd4
{[%clk 0:02:32.2]} 18... Nc5 {[%clk 0:01:46]} 19. Qh5 {[%clk 0:02:31.1]} 19...
Kg7 {[%clk 0:01:43.1]} 20. f4 {[%clk 0:02:22.6]} 20... Ne4 {[%clk 0:01:16]} 21.
Bxe4 {[%clk 0:01:43.1]} 21... dxe4 {[%clk 0:01:16.9]} 22. f5 {[%clk 0:01:43.6]}
22... exf5 {[%clk 0:01:12.2]} 23. Rxf5 {[%clk 0:01:44.5]} 23... Bd5 {[%clk
0:00:36.6]} 24. Rf6 {[%clk 0:01:39.4]} 24... Rh8 {[%clk 0:00:37]} 25. Rxb6
{[%clk 0:01:37.8]} 25... Qc5 {[%clk 0:00:32.2]} 26. Bf2 {[%clk 0:01:31.3]} 26...
Kh7 {[%clk 0:00:27.3]} 1-0

[Event "Early-Titled-Tuesday-Blitz-May-28-2024"]
[Site "Chess.com"]
[Date "2024.05.28"]
[Round "11"]
[White "ab-lsv"]
[Black "Ramosha"]
[Result "0-1"]
[WhiteElo "2372"]
[BlackElo "2561"]
[TimeControl "180+1"]
[EndTime "10:07:10 PDT"]
[Termination "Ramosha won by resignation"]

1. d4 {[%clk 0:02:59.6]} 1... Nf6 {[%clk 0:02:59.9]} 2. c4 {[%clk 0:02:59.8]}
2... e6 {[%clk 0:03:00.3]} 3. Nc3 {[%clk 0:03:00.2]} 3... Bb4 {[%clk 0:03:00.6]}
4. Qc2 {[%clk 0:03:00.6]} 4... O-O {[%clk 0:02:58.6]} 5. Nf3 {[%clk 0:03:00.7]}
5... d5 {[%clk 0:02:58.4]} 6. cxd5 {[%clk 0:03:00.7]} 6... exd5 {[%clk
0:02:58.6]} 7. Bf4 {[%clk 0:03:00.9]} 7... c6 {[%clk 0:02:58.9]} 8. e3 {[%clk
0:03:01.1]} 8... Re8 {[%clk 0:02:59]} 9. Bd3 {[%clk 0:03:00.8]} 9... Nbd7 {[%clk
0:02:59.4]} 10. O-O {[%clk 0:03:00.9]} 10... Nf8 {[%clk 0:03:00]} 11. h3 {[%clk
0:02:50.4]} 11... Ng6 {[%clk 0:02:59.5]} 12. Bh2 {[%clk 0:02:49.9]} 12... Bd6
{[%clk 0:02:59.2]} 13. Rab1 {[%clk 0:02:43.2]} 13... Bxh2+ {[%clk 0:02:57.9]}
14. Kxh2 {[%clk 0:02:38.6]} 14... Qd6+ {[%clk 0:02:57.8]} 15. Kh1 {[%clk
0:02:38]} 15... Bd7 {[%clk 0:02:57.9]} 16. b4 {[%clk 0:02:36.1]} 16... Rac8
{[%clk 0:02:53.9]} 17. Rfc1 {[%clk 0:02:35.9]} 17... Nh5 {[%clk 0:02:48.5]} 18.
a4 {[%clk 0:02:27.4]} 18... Qf6 {[%clk 0:02:48.5]} 19. Bxg6 {[%clk 0:01:59.8]}
19... hxg6 {[%clk 0:02:44.9]} 20. Ne5 {[%clk 0:01:57.7]} 20... Bf5 {[%clk
0:02:42.6]} 21. e4 {[%clk 0:01:50.5]} 21... dxe4 {[%clk 0:02:41.1]} 22. g4
{[%clk 0:01:49.4]} 22... Qh4 {[%clk 0:02:38.8]} 23. gxf5 {[%clk 0:01:14.3]}
23... Qxh3+ {[%clk 0:02:38.6]} 24. Kg1 {[%clk 0:01:14.6]} 24... gxf5 {[%clk
0:02:39.1]} 25. f3 {[%clk 0:01:00.1]} 25... exf3 {[%clk 0:02:35.5]} 26. Qh2
{[%clk 0:00:51]} 26... Qxh2+ {[%clk 0:02:27.4]} 27. Kxh2 {[%clk 0:00:51]} 27...
g5 {[%clk 0:02:27.1]} 28. Nxf3 {[%clk 0:00:48]} 28... g4 {[%clk 0:02:27.2]} 29.
Ne5 {[%clk 0:00:42.5]} 29... f6 {[%clk 0:02:27.1]} 30. Nc4 {[%clk 0:00:38.4]}
30... Rcd8 {[%clk 0:02:26.5]} 31. Rd1 {[%clk 0:00:35.3]} 31... Kg7 {[%clk
0:02:23.5]} 32. d5 {[%clk 0:00:35.2]} 32... cxd5 {[%clk 0:02:23.5]} 33. Rxd5
{[%clk 0:00:27.5]} 33... Rxd5 {[%clk 0:02:23.4]} 34. Nxd5 {[%clk 0:00:28]} 34...
Re2+ {[%clk 0:02:23.8]} 35. Kg1 {[%clk 0:00:27.2]} 35... f4 {[%clk 0:02:24]} 36.
Nd6 {[%clk 0:00:18.9]} 36... Kg6 {[%clk 0:02:19.5]} 37. Rd1 {[%clk 0:00:16.9]}
37... f3 {[%clk 0:02:19.5]} 38. Nc3 {[%clk 0:00:12]} 38... Rg2+ {[%clk
0:02:19.4]} 39. Kf1 {[%clk 0:00:11.1]} 39... Ng3+ {[%clk 0:02:19.9]} 40. Ke1
{[%clk 0:00:11.3]} 40... f2+ {[%clk 0:02:20.6]} 0-1

[Event "Early-Titled-Tuesday-Blitz-May-28-2024"]
[Site "Chess.com"]
[Date "2024.05.28"]
[Round "11"]
[White "eagleclaw07"]
[Black "Stanbad1"]
[Result "0-1"]
[WhiteElo "2841"]
[BlackElo "2664"]
[TimeControl "180+1"]
[EndTime "10:07:13 PDT"]
[Termination "Stanbad1 won by resignation"]

1. d4 {[%clk 0:02:56.7]} 1... Nf6 {[%clk 0:02:59.6]} 2. c4 {[%clk 0:02:57.6]}
2... c5 {[%clk 0:02:57.1]} 3. d5 {[%clk 0:02:57.8]} 3... b5 {[%clk 0:02:56.5]}
4. cxb5 {[%clk 0:02:58.7]} 4... a6 {[%clk 0:02:56.9]} 5. bxa6 {[%clk 0:02:59.6]}
5... g6 {[%clk 0:02:57.3]} 6. Nc3 {[%clk 0:03:00.5]} 6... Bg7 {[%clk 0:02:57.7]}
7. e4 {[%clk 0:03:01.3]} 7... O-O {[%clk 0:02:58]} 8. a7 {[%clk 0:03:00.8]} 8...
Rxa7 {[%clk 0:02:58.1]} 9. Nf3 {[%clk 0:03:01.4]} 9... d6 {[%clk 0:02:58.6]} 10.
Be2 {[%clk 0:03:01.9]} 10... Na6 {[%clk 0:02:55.1]} 11. O-O {[%clk 0:03:02.6]}
11... Nc7 {[%clk 0:02:54.5]} 12. Bg5 {[%clk 0:03:02.7]} 12... e6 {[%clk
0:02:51.9]} 13. e5 {[%clk 0:02:55.8]} 13... dxe5 {[%clk 0:02:46.1]} 14. Nxe5
{[%clk 0:02:56.7]} 14... Ncxd5 {[%clk 0:02:39]} 15. Nc6 {[%clk 0:02:54.3]} 15...
Nxc3 {[%clk 0:02:38.7]} 16. bxc3 {[%clk 0:02:39.1]} 16... Qxd1 {[%clk
0:02:37.2]} 17. Rfxd1 {[%clk 0:02:39.4]} 17... Rc7 {[%clk 0:02:36.5]} 18. Bf3
{[%clk 0:02:35.8]} 18... Bb7 {[%clk 0:02:32]} 19. Bf4 {[%clk 0:02:33.4]} 19...
Rxc6 {[%clk 0:02:30.8]} 20. Bxc6 {[%clk 0:02:33.1]} 20... Bxc6 {[%clk
0:02:31.7]} 21. Be5 {[%clk 0:02:33.3]} 21... Nd5 {[%clk 0:02:30.4]} 22. Bxg7
{[%clk 0:02:33]} 22... Kxg7 {[%clk 0:02:31.3]} 23. c4 {[%clk 0:02:28.4]} 23...
Nc3 {[%clk 0:02:29.5]} 24. Rd6 {[%clk 0:02:25.7]} 24... Rc8 {[%clk 0:02:26.6]}
25. f3 {[%clk 0:02:22.2]} 25... Kf6 {[%clk 0:02:20.3]} 26. Kf2 {[%clk
0:02:19.2]} 26... Ke7 {[%clk 0:02:19]} 27. Rd3 {[%clk 0:02:19.3]} 27... Na4
{[%clk 0:02:17.1]} 28. Rb1 {[%clk 0:02:19.9]} 28... Ra8 {[%clk 0:02:14.2]} 29.
Ra3 {[%clk 0:02:19.6]} 29... Rd8 {[%clk 0:02:05.3]} 30. Ke2 {[%clk 0:02:17.1]}
30... Rd4 {[%clk 0:02:04.5]} 31. Rc1 {[%clk 0:02:13.3]} 31... Nb2 {[%clk
0:02:03.4]} 32. Ra5 {[%clk 0:02:07.7]} 32... Nxc4 {[%clk 0:01:57.2]} 33. Rxc5
{[%clk 0:02:07.1]} 33... Bd5 {[%clk 0:01:57.4]} 34. Rc7+ {[%clk 0:01:59.4]}
34... Kd6 {[%clk 0:01:54.7]} 35. Rxf7 {[%clk 0:01:57.1]} 35... Rd2+ {[%clk
0:01:54.7]} 36. Ke1 {[%clk 0:01:57]} 36... Rxg2 {[%clk 0:01:54.3]} 37. Rd1
{[%clk 0:01:54]} 37... Rxh2 {[%clk 0:01:50.8]} 38. a4 {[%clk 0:01:53]} 38... Ne5
{[%clk 0:01:49]} 39. Rf4 {[%clk 0:01:50.1]} 39... g5 {[%clk 0:01:48.9]} 40. Rb4
{[%clk 0:01:41.8]} 40... Nxf3+ {[%clk 0:01:48.6]} 41. Kf1 {[%clk 0:01:42.3]}
41... h5 {[%clk 0:01:37.9]} 42. Rb6+ {[%clk 0:01:37.9]} 42... Ke5 {[%clk
0:01:37.1]} 43. a5 {[%clk 0:01:35.6]} 43... Kf4 {[%clk 0:01:36.5]} 44. Rb4+
{[%clk 0:00:53.8]} 44... Kg3 {[%clk 0:01:34.9]} 0-1

[Event "Early-Titled-Tuesday-Blitz-May-28-2024"]
[Site "Chess.com"]
[Date "2024.05.28"]
[Round "11"]
[White "GlavkonVVS"]
[Black "Timerkhanov"]
[Result "1-0"]
[WhiteElo "2587"]
[BlackElo "2722"]
[TimeControl "180+1"]
[EndTime "10:07:17 PDT"]
[Termination "GlavkonVVS won by resignation"]

1. c4 {[%clk 0:03:00.9]} 1... c6 {[%clk 0:02:59.9]} 2. g3 {[%clk 0:02:59.4]}
2... d5 {[%clk 0:03:00.8]} 3. Bg2 {[%clk 0:02:59.8]} 3... Nf6 {[%clk 0:03:00.9]}
4. Nf3 {[%clk 0:02:59.9]} 4... g6 {[%clk 0:03:01.5]} 5. O-O {[%clk 0:02:59.7]}
5... Bg7 {[%clk 0:03:02.1]} 6. d3 {[%clk 0:02:59.6]} 6... O-O {[%clk 0:03:02.6]}
7. Nc3 {[%clk 0:02:58.5]} 7... a6 {[%clk 0:03:02.1]} 8. e4 {[%clk 0:02:58.2]}
8... dxe4 {[%clk 0:03:01.2]} 9. dxe4 {[%clk 0:02:58]} 9... Qxd1 {[%clk
0:03:01.9]} 10. Rxd1 {[%clk 0:02:57.6]} 10... Bg4 {[%clk 0:03:02.2]} 11. h3
{[%clk 0:02:55.6]} 11... Bxf3 {[%clk 0:03:02.5]} 12. Bxf3 {[%clk 0:02:55.9]}
12... Nbd7 {[%clk 0:03:03.2]} 13. Be3 {[%clk 0:02:53.8]} 13... b5 {[%clk
0:02:51.8]} 14. Be2 {[%clk 0:02:36.1]} 14... b4 {[%clk 0:02:49.9]} 15. Na4
{[%clk 0:02:34.2]} 15... Rfd8 {[%clk 0:02:48]} 16. f3 {[%clk 0:02:29.3]} 16...
Ne8 {[%clk 0:02:36.9]} 17. Kf2 {[%clk 0:02:20.9]} 17... Nc7 {[%clk 0:02:30.7]}
18. Rd2 {[%clk 0:02:14.5]} 18... Ne6 {[%clk 0:02:00.7]} 19. Rad1 {[%clk
0:02:13.2]} 19... Ne5 {[%clk 0:02:01.1]} 20. f4 {[%clk 0:02:04.2]} 20... Rxd2
{[%clk 0:01:40.5]} 21. Rxd2 {[%clk 0:02:04.2]} 21... a5 {[%clk 0:01:30.5]} 22.
fxe5 {[%clk 0:02:01.1]} 22... Bxe5 {[%clk 0:01:31.4]} 23. Bg4 {[%clk 0:01:52.3]}
23... Ng7 {[%clk 0:01:28.7]} 24. Bf4 {[%clk 0:01:43.9]} 24... Bxf4 {[%clk
0:01:16.9]} 25. gxf4 {[%clk 0:01:43.4]} 25... h5 {[%clk 0:01:15.8]} 26. Bf3
{[%clk 0:01:42.9]} 26... e5 {[%clk 0:01:16.5]} 27. f5 {[%clk 0:01:27.9]} 27...
gxf5 {[%clk 0:01:12]} 28. exf5 {[%clk 0:01:27.9]} 28... Nxf5 {[%clk 0:01:11.8]}
29. Bxc6 {[%clk 0:01:27.3]} 29... Rb8 {[%clk 0:01:11.7]} 30. Rd7 {[%clk
0:01:20.3]} 30... Nd4 {[%clk 0:01:11.8]} 31. Bd5 {[%clk 0:01:19.5]} 31... Rf8
{[%clk 0:01:07.7]} 32. Nc5 {[%clk 0:01:18.4]} 32... Kg7 {[%clk 0:01:07]} 33. Ke3
{[%clk 0:01:10.6]} 33... Kg6 {[%clk 0:01:06.4]} 34. Ke4 {[%clk 0:01:09.9]} 34...
f5+ {[%clk 0:01:03]} 35. Kxe5 {[%clk 0:01:08.2]} 35... Ne2 {[%clk 0:01:03.9]}
36. Ne6 {[%clk 0:01:04.1]} 36... f4 {[%clk 0:01:02.4]} 37. Nxf8+ {[%clk
0:01:03.7]} 1-0

[Event "Early-Titled-Tuesday-Blitz-May-28-2024"]
[Site "Chess.com"]
[Date "2024.05.28"]
[Round "11"]
[White "maracayo"]
[Black "Let_it_be_1"]
[Result "1-0"]
[WhiteElo "2412"]
[BlackElo "2572"]
[TimeControl "180+1"]
[EndTime "10:07:33 PDT"]
[Termination "maracayo won by resignation"]

1. e4 {[%clk 0:03:00.9]} 1... e6 {[%clk 0:02:59.6]} 2. Nf3 {[%clk 0:02:59.6]}
2... d5 {[%clk 0:03:00.5]} 3. d3 {[%clk 0:02:59.9]} 3... Nf6 {[%clk 0:02:57.9]}
4. Nbd2 {[%clk 0:02:59.4]} 4... Nc6 {[%clk 0:02:56.7]} 5. Be2 {[%clk 0:02:59.4]}
5... e5 {[%clk 0:02:56.5]} 6. O-O {[%clk 0:02:59.1]} 6... g6 {[%clk 0:02:56.4]}
7. h3 {[%clk 0:02:59]} 7... Bg7 {[%clk 0:02:56.5]} 8. c3 {[%clk 0:02:59.3]} 8...
a5 {[%clk 0:02:56.4]} 9. Re1 {[%clk 0:02:58.9]} 9... O-O {[%clk 0:02:55.8]} 10.
Bf1 {[%clk 0:02:59]} 10... Re8 {[%clk 0:02:55.2]} 11. Qc2 {[%clk 0:02:57.1]}
11... b6 {[%clk 0:02:51.4]} 12. b3 {[%clk 0:02:54.6]} 12... Ba6 {[%clk
0:02:42.6]} 13. exd5 {[%clk 0:02:47.4]} 13... Nxd5 {[%clk 0:02:41.5]} 14. Bb2
{[%clk 0:02:41.2]} 14... Nf4 {[%clk 0:02:33.5]} 15. Nc4 {[%clk 0:02:33.1]} 15...
b5 {[%clk 0:02:21.9]} 16. Ncd2 {[%clk 0:02:11.8]} 16... b4 {[%clk 0:02:21]} 17.
c4 {[%clk 0:02:11.3]} 17... f5 {[%clk 0:02:12.4]} 18. g3 {[%clk 0:02:01.6]}
18... Ne6 {[%clk 0:02:11.9]} 19. Bg2 {[%clk 0:02:01]} 19... Rb8 {[%clk
0:01:47.8]} 20. Rad1 {[%clk 0:01:42.9]} 20... Bb7 {[%clk 0:01:45.9]} 21. h4
{[%clk 0:01:41.6]} 21... h6 {[%clk 0:01:30.5]} 22. Nf1 {[%clk 0:01:27.2]} 22...
Kh7 {[%clk 0:01:26.8]} 23. h5 {[%clk 0:01:23.6]} 23... g5 {[%clk 0:01:24.8]} 24.
d4 {[%clk 0:01:22.2]} 24... e4 {[%clk 0:01:24.9]} 25. d5 {[%clk 0:01:11.6]}
25... exf3 {[%clk 0:01:20.5]} 26. dxc6 {[%clk 0:01:10.9]} 26... Nd4 {[%clk
0:00:58.3]} 27. Bxd4 {[%clk 0:01:05.6]} 27... Rxe1 {[%clk 0:00:57.7]} 28. Qxf5+
{[%clk 0:01:02.1]} 28... Kg8 {[%clk 0:00:55.1]} 29. Rxe1 {[%clk 0:00:57.5]}
29... fxg2 {[%clk 0:00:48]} 30. Qe6+ {[%clk 0:00:54.4]} 30... Kh7 {[%clk
0:00:45.6]} 31. Qg6+ {[%clk 0:00:53.3]} 1-0

[Event "Early-Titled-Tuesday-Blitz-May-28-2024"]
[Site "Chess.com"]
[Date "2024.05.28"]
[Round "11"]
[White "vishwa_vijeta"]
[Black "ploxoi"]
[Result "1-0"]
[WhiteElo "2645"]
[BlackElo "2413"]
[TimeControl "180+1"]
[EndTime "10:07:34 PDT"]
[Termination "vishwa_vijeta won by resignation"]

1. e4 {[%clk 0:03:00.9]} 1... c5 {[%clk 0:03:00.4]} 2. Nc3 {[%clk 0:02:58.9]}
2... e6 {[%clk 0:03:00.5]} 3. Nf3 {[%clk 0:02:54.6]} 3... Nc6 {[%clk 0:03:00.8]}
4. d4 {[%clk 0:02:44]} 4... cxd4 {[%clk 0:03:01.7]} 5. Nxd4 {[%clk 0:02:44.6]}
5... Qc7 {[%clk 0:03:00.9]} 6. Be3 {[%clk 0:02:40.1]} 6... a6 {[%clk 0:03:00.9]}
7. g3 {[%clk 0:02:37.6]} 7... Nf6 {[%clk 0:02:42]} 8. Bg2 {[%clk 0:02:33.3]}
8... Nxd4 {[%clk 0:02:23.1]} 9. Bxd4 {[%clk 0:02:31.7]} 9... d6 {[%clk
0:02:15.3]} 10. O-O {[%clk 0:02:27]} 10... Be7 {[%clk 0:02:14.8]} 11. Re1 {[%clk
0:02:26.3]} 11... e5 {[%clk 0:02:08.1]} 12. Be3 {[%clk 0:02:25]} 12... Be6
{[%clk 0:02:08.4]} 13. Qd2 {[%clk 0:02:24.1]} 13... O-O {[%clk 0:02:06.5]} 14.
f4 {[%clk 0:02:22.8]} 14... exf4 {[%clk 0:01:23]} 15. gxf4 {[%clk 0:02:20.4]}
15... Ng4 {[%clk 0:01:17.9]} 16. Bd4 {[%clk 0:02:12.5]} 16... Bh4 {[%clk
0:01:03.9]} 17. f5 {[%clk 0:02:06.5]} 17... Bxe1 {[%clk 0:00:19]} 18. Rxe1
{[%clk 0:02:05.2]} 18... Bc4 {[%clk 0:00:19.4]} 19. Qg5 {[%clk 0:02:00.5]} 19...
Ne5 {[%clk 0:00:12]} 20. f6 {[%clk 0:01:51.3]} 20... Ng6 {[%clk 0:00:12.5]} 21.
h4 {[%clk 0:01:46.6]} 21... h6 {[%clk 0:00:08.5]} 22. Qg3 {[%clk 0:01:46.6]}
22... h5 {[%clk 0:00:07.6]} 23. Bf3 {[%clk 0:01:40.1]} 23... Rfe8 {[%clk
0:00:05.5]} 24. Bxh5 {[%clk 0:01:39.4]} 24... Rac8 {[%clk 0:00:04.4]} 25. Bg4
{[%clk 0:01:29.7]} 25... Be6 {[%clk 0:00:02.7]} 26. h5 {[%clk 0:01:27.2]} 26...
Ne5 {[%clk 0:00:02.3]} 27. Bxe6 {[%clk 0:01:26.3]} 1-0